Cogmind - Beta 15 @@@ ROGUE MODE // 2025.07.26 @ 16:30:36 Player: AussieBBQ Result: Destroyed by H1-4CW(R) with Subdweller Shrapnel Launcher Performance ------------- Evolutions (0) 0 Regions Visited (1) 200 Robots Destroyed (19) 95 Value Destroyed (361) 361 Prototype IDs (0) 0 Alien Tech Used (0) 0 Bonus (0) 0 TOTAL SCORE: 656 Bonus ------- None Cogmind --------- Core Integrity 0/250 Matter 284/300 Energy 240/250 System Corruption 0% Temperature Cool (0) Movement Walking (190) Ox1 Location -10/Materials Parts ------- > --- POWER (1) -------- Ion Engine > --- PROPULSION (2) --- Aluminum Leg Aluminum Leg > --- UTILITY (2) ------ Medium Storage Unit Medium Storage Unit > --- WEAPON (2) ------- Light Assault Rifle > --- INVENTORY (10) --- Ion Engine Light Treads Wheel Small Storage Unit Small Storage Unit Medium Matter Pod (100) Improved Terrain Scanner Seismic Detector Mining Laser Peak State ------------ > --- POWER ------------ Light Ion Engine > --- PROPULSION ------- Aluminum Leg Aluminum Leg > --- UTILITY ---------- Small Storage Unit Seismic Detector > --- WEAPON ----------- Medium Laser Small Laser > --- INVENTORY -------- Ion Engine Light Treads Light Treads Wheel Wheel Wheel Improved Terrain Scanner EM Pulse Gun [Rating: 8] Favorites ----------- Power Ion Engine Engine Ion Engine Propulsion Aluminum Leg Leg Aluminum Leg Utility Small Storage Unit Device Seismic Detector Storage Small Storage Unit Weapon Small Laser Energy Gun Small Laser Ballistic Gun Light Assault Rifle Special Weapon Mining Laser Build | -11 -10 ------- Run | Yrd Mat Slots Evolved . | . . Power . | . . Propulsion . | . . Utility . | . . Weapon . | . . Parts Attached 16 | 8 8 Power 2 | 1 1 Engine 2 | 1 1 Core . | . . Reactor . | . . Propulsion 5 | 2 3 Treads . | . . Leg 5 | 2 3 Wheel . | . . Hover . | . . Flight . | . . Utility 4 | 2 2 Device 1 | 1 . Storage 3 | 1 2 Processor . | . . Hackware . | . . Protection . | . . Artifact . | . . Weapon 5 | 3 2 Energy Gun 3 | 3 . Energy Cannon . | . . Ballistic Gun 1 | . 1 Ballistic Cannon . | . . Launcher . | . . Special Weapon 1 | . 1 Impact Weapon . | . . Slashing Weapon . | . . Piercing Weapon . | . . Special Melee Weapon . | . . Unidentified Prototypes . | . . Parts Lost 4 | . 4 Power 1 | . 1 Propulsion 1 | . 1 Utility . | . . Weapon 2 | . 2 Highest Loss Streak 1 | . 1 To Critical Strikes . | . . Average Backups 7 | 5 8 Power . | . . Propulsion 3 | 3 3 Utility 2 | . 3 Weapon 1 | . 1 Tool/Special . | . . Unused Backups 10 | 1 9 Power 1 | . 1 Propulsion 5 | 1 4 Utility 4 | . 4 Weapon . | . . Tool/Special . | . . Average Slot Usage (%) 97 | . 97 Engine 12 | . 12 Leg 27 | . 27 Device 8 | . 8 Storage 19 | . 19 Energy Gun 25 | . 25 Ballistic Gun 1 | . 1 Peak Build Rating 8 | 8 8 Average Rating 7 | 5 7 On Entrance 4 | . 8 Naked Turns . | . . Heaviest Build 28 | 12 28 Greatest Support 20 | 20 20 Greatest Overweight (x) 4 | . 4 Average Overweight (x) . | . . Largest Inventory Capacity 10 | 8 10 Average Capacity 8 | 7 8 Most Carried 10 | 8 10 Average Carried 8 | 5 8 Final Capacity 10 | 8 10 Final Carried 9 | 8 9 Class Distribution -------------------- 100% | Mutant Dominant Class ---------------- Mutant | -10/Materials Resources | -11 -10 ----------- Run | Yrd Mat Matter Collected 500 | 290 210 Remotely . | . . Salvage Created 561 | 91 470 Parts 42 | 14 28 Haulers Intercepted 1 | . 1 Recyclers Shooed 1 | . 1 Parts Field Recycled . | . . Retrieved Matter . | . . Parts Self-Destructed . | . . Prevented . | . . Kills | -11 -10 ------- Run | Yrd Mat Combat Hostiles Destroyed 13 | . 13 Guns 12 | . 12 AOE 1 | . 1 Classes Destroyed 4 | 1 3 Tunneler 5 | 5 . Hauler 1 | . 1 Swarmer 6 | . 6 Grunt 7 | . 7 Best Kill Streak 4 | 2 4 Combat Bots Only 4 | . 4 Max Kills in Single Turn 1 | 1 1 Gunslinging . | . . Exploded 1 | . 1 Melee . | . . Uniques/NPCs Destroyed . | . . Combat | -11 -10 -------- Run | Yrd Mat Hostile Shots Fired 91 | . 91 Missed 28 | . 28 Hits 63 | . 63 Projectile 63 | . 63 AOE 7 | . 7 Damage Taken 832 | . 832 Core 277 | . 277 Absorbed by Shields . | . . Core Remaining (%) 100 | 100 . Volleys Fired 60 | 10 50 Largest 2 | 2 2 Hottest 90 | 90 90 Shots Fired 115 | 20 95 Gun 115 | 20 95 Cannon . | . . Launcher . | . . Special . | . . Kinetic 1 | . 1 Thermal 89 | 17 72 Explosive . | . . Electromagnetic 25 | 3 22 Robot Hit Streak 9 | 4 9 Robot Miss Streak 8 | 2 8 Penetration Max . | . . Secondary Targets 2 | . 2 Max Gunslinging Chain 1 | . 1 Shots Hit Robots 67 | 15 52 Core Hits 27 | 5 22 Critical Kills . | . . Critical Parts Destroyed . | . . Critical Strikes 5 | 2 3 Burn 4 | 2 2 Corrupt 1 | . 1 Melee Attacks . | . . Impact . | . . Slashing . | . . Piercing . | . . Sneak Attacks . | . . Combat Hostiles . | . . Follow-up Attacks . | . . Damage Inflicted 936 | 180 756 Guns 870 | 180 690 Cannons . | . . Explosions 66 | . 66 Melee . | . . Ramming . | . . Kinetic . | . . Thermal 700 | 150 550 Explosive . | . . Electromagnetic 236 | 30 206 Impact . | . . Slashing . | . . Piercing . | . . Highest Corruption . | . . Average Corruption . | . . Corruption Purged . | . . Corruption Blocked . | . . Overload Shots . | . . Overflow Damage 3 | . 3 Projectiles . | . . Explosions 3 | . 3 Melee . | . . Knockbacks . | . . Impact . | . . Kinetic . | . . Secondary . | . . Self-Inflicted Damage 12 | . 12 Shots 1 | . 1 Rammed . | . . Targets Rammed . | . . Kicked . | . . Crushed . | . . Highest Temperature 234 | 90 234 Average Temperature 75 | 38 83 Received Heat Transfer 219 | . 219 Siege Activations . | . . Martial Activations . | . . Shielding Activations . | . . Robots Disrupted . | . . Combat Hostiles . | . . Robots Corrupted . | . . Combat Hostiles . | . . Parts Fried . | . . Impact Corruptions . | . . Robots Melted . | . . Combat Hostiles . | . . Parts Melted 6 | 3 3 Heat Transferred 2008 | 569 1439 Parts Sabotaged . | . . Parts Stolen . | . . Parts Stripped . | . . Power Chain Reactions 1 | . 1 Alert | -11 -10 ------- Run | Yrd Mat Maximum Alert Level . | . . Low Security (%) 100 | 100 100 Level 1 . | . . Level 2 . | . . Level 3 . | . . Level 4 . | . . Level 5 . | . . High Security . | . . Max Security . | . . Peak Influence 144 | 5 144 Initial . | . . Average 41 | 1 51 Influence Increases 350 | 25 325 Destroy 0b10 Robot/C 260 | . 260 Destroy 0b10 Robot/NC 30 | 25 5 Destroy Leader 52 | . 52 Successful Hack 4 | . 4 Destroy Structure 4 | . 4 Influence Decreases 340 | 25 315 Time Decay 205 | 25 180 Lost Part 40 | . 40 Purge Threat 95 | . 95 Squads Dispatched 1 | . 1 Investigation . | . . Extermination . | . . Reinforcement 1 | . 1 Assault . | . . Garrison . | . . Intercept . | . . Searches Triggered . | . . Construction Impeded . | . . Haulers Reinforced . | . . Active Scanning Responses . | . . Cargo Convoy Interrupts . | . . Stealth | -11 -10 --------- Run | Yrd Mat Distress Signals 5 | . 5 Communications Jammed . | . . Distress Signals . | . . Times Spotted 25 | . 25 Peak Tracking Total 5 | . 5 Tactical Retreats 1 | . 1 Traps | -11 -10 ------- Run | Yrd Mat Traps Triggered 1 | . 1 Indirectly . | . . Trap Hack Attempts . | . . Triggered . | . . Disarmed . | . . Reprogrammed . | . . Reused . | . . Traps Extracted . | . . Installed . | . . Triggered . | . . Machines | -11 -10 ---------- Run | Yrd Mat Machines Disabled . | . . Max in Single Turn . | . . Machines Repaired . | . . Machines Dismantled . | . . Machines Sabotaged . | . . Overloaded Fab Kills . | . . Hacking | -11 -10 --------- Run | Yrd Mat Machines Accessed 3 | . 3 Terminals 3 | . 3 Fabricators . | . . Repair Stations . | . . Recycling Units . | . . Scanalyzers . | . . Garrison Access . | . . Total Hacks 4 | . 4 Successful 3 | . 3 Failed 1 | . 1 Catastrophic . | . . Database Lockouts . | . . Manual . | . . Terminals 4 | . 4 Fabricators . | . . Repair Stations . | . . Recycling Units . | . . Scanalyzers . | . . Garrison Access . | . . Terminal Hacks 3 | . 3 Unreport Threat 1 | . 1 Locate Traps 1 | . 1 Zone Layout 1 | . 1 Fabricator Hacks . | . . Repair Station Hacks . | . . Recycling Unit Hacks . | . . Scanalyzer . | . . Garrison Access Hacks . | . . Unauthorized Hacks . | . . Terminals . | . . Fabricators . | . . Repair Stations . | . . Recycling Units . | . . Scanalyzers . | . . Garrison Access . | . . Data Cores Recovered . | . . Used . | . . Hacking Detections . | . . Full Trace Events . | . . Feedback Events . | . . Feedback Blocked . | . . Robot Schematics Acquired . | . . Robots Built . | . . Authchips . | . . Time . | . . Total Robot Build Rating . | . . Part Schematics Acquired . | . . Parts Built . | . . Authchips . | . . Time . | . . Total Part Build Rating . | . . Parts Repaired . | . . Time . | . . Parts Recycled . | . . Recycled Matter . | . . Retrieved Matter . | . . Retrieved Components . | . . Parts Scanalyzed . | . . Part Schematics Acquired . | . . Parts Damaged . | . . Bothacking | -11 -10 ------------ Run | Yrd Mat Used RIF Installer . | . . Robots Hacked . | . . Non-combat . | . . Combat . | . . Robot Hacks Applied . | . . Relay Couplers Released . | . . Fabnet Peak Effective % . | . . Robots Rewired . | . . Allies Hacked . | . . Hacks Repelled . | . . Allies | -11 -10 -------- Run | Yrd Mat Total Allies . | . . Largest Group . | . . Highest-Rated Group . | . . Highest-Rated Ally . | . . Total Orders . | . . Ally Attacks . | . . Total Damage . | . . Kills . | . . Allies Corrupted . | . . Allies Melted . | . . Intel | -11 -10 ------- Run | Yrd Mat Active Infowar (turns) 208 | 23 185 Seismic 208 | 23 185 Robot Analysis Total . | . . Derelict Logs Recovered . | . . Drone Launches . | . . Drone Recoveries . | . . Exploration | -11 -10 ------------- Run | Yrd Mat Turns Passed 763 | 157 606 Spaces Moved 361 | 86 275 Core 8 | 6 2 Treads . | . . Legs 353 | 80 273 Wheels . | . . Hover . | . . Flight . | . . Fastest Speed 50 | 50 120 Average Speed 140 | 115 148 Slowest Speed 260 | 120 260 Overloaded Moves . | . . Propulsion Burnouts . | . . Robots Hopped . | . . Potential Cave-ins . | . . Cave-ins Triggered . | . . Exploration Rate (%) 26 | 5 47 Regions Visited 1 Branch Regions . Pre-discovered Areas . | . . Known Exits Taken . | . . Unknown Exits Taken 1 | 1 . Scrap Searched . | . . Spaces Dug . | . . Terrain Destroyed 3 | . 3 Melee . | . . Projectile . | . . AOE 3 | . 3 Terrain Rammed . | . . Walls Destroyed . | . . Machines Disabled . | . . Actions | -11 -10 --------- Run | Yrd Mat Total 497 | 120 377 Wait 33 | 6 27 Move 360 | 85 275 Hop . | . . Pick Up 13 | 9 4 Fast Attach 11 | 7 4 Attach 4 | . 4 Detach 2 | . 2 Swap 7 | 2 5 Drop 7 | 1 6 Fire 60 | 10 50 Melee . | . . Ram . | . . Kick . | . . Crush . | . . Escape Stasis . | . . Rewire . | . . Trap . | . . Miscellaneous . | . . Route ------- -11/Scrapyard -10/Materials (discovered 2 exits: [*Mat] / [Min]) History --------- Turn | Location | Event 23 | -11/Scrapyard | Discovered new exit (range 15) 158 | -11/Scrapyard | Entered Materials 246 | -10/Materials | Discovered new exit (range 15) 329 | -10/Materials | Build established: Mutant 494 | -10/Materials | Discovered new exit (range 11) 658 | -10/Materials | Derelicts attacked the area 679 | -10/Materials | Core integrity fell below 50% 759 | -10/Materials | Core integrity fell below 20% 764 | -10/Materials | Destroyed by H1-4CW(R) with Subdweller Shrapnel Launcher Last Messages --------------- 00682_ R-06 Scavenger collects Lgt. Assault Rifle. 00683_ K-01 Serf collects debris. 00685_ R-06 Scavenger collects Flight Unit. 00686_ Dropped Sml. Laser. 00687_ K-01 Serf collects debris. 00687_ Acquired Lgt. Assault Rifle. 00689_ Acquired 94 matter. 00689_ M-13 Machinist repairs U-05 Engineer Wheel. 00692_ K-01 Serf collects debris. 00695_ W-16 Scout destroyed. 00697_ M-13 Machinist destroyed. 00699_ Acquired 36 matter. 00699_ A-02 Transporter destroyed. 00724_ Nuclear Reactor explodes. 00724_ Aluminum Leg destroyed. 00725_ The unstable cave ceiling collapses. 00758_ Med. Laser destroyed. 00758_ Recycling Unit disabled. Map ----- +----------------------------------------------------+ | | | | | | | | | | | | | | | | | | | | | | | | | | | | | | | | | | | ?????????????????##########??????????????????????? | | ?????????????????# ?????????????????###### | | ?????????????????? #??????####????## # | | ?????????????????? """ ###### ##??# | | ?????????????????? """ ; #### | | ?????????????????# """ ;; ;##" | | ?????????????????# """ ; RR | | ?????????????????# """ ;;; ;;## | | ?????????????????# @ ; ; ##" | | ?????????????????#####+;;;####;; ; | | ????????????????????? + ???## # | | ??????????????????? #r ????# " # | | ????????????????? ?# "???# """"" #### | | ????????????????####+#??# "???# """"" #??? | | ????????????????????????#| ??# """" " ##### | | ????????????????????????# ""??# "" + "# | | ????????????????????????# u"""?# #" ## """ | | ????????????????????????? ""??# % ## ## """ | | ????????????????????????? ???#####+##### %+ """ | | ?????????????????????????#+####### # | | ?????????????????????? = # = | | ?????????????????????? *^% * [##+##/ | | ?????????????????????? = """ """*%*![ %%* | | ?????????????????????? %! """ """!*=%% =% | | ??????????????????????? """ """ %####### | | ??????????????????????? ####??? | | ??????????????????????? """#### | | ???????????????????????? """^ """ T"## | | ????????????????????????? """ """ """## " | | ??????????????????????????# """ """ ##### " | | ??????????????????????????# ! #???# " | | ??????????????????????????# #???# | | ??????????????????????????# ##### % #???# | +----------------------------------------------------+ Best States ------------- Heat Dissipation 25 Energy Generation 10 Energy Capacity 250 Matter Stores 300 Matter Capacity 300 Sight Range 16 Terrain Scan Density 10 Evasion (%) 55 Item Schematics ----------------- None Robot Schematics ------------------ None Fabricated ------------ Nothing Repaired ---------- Nothing Alien Tech Used ----------------- None Achievements -------------- None Challenges ------------ None Game ------ Seed FusionXenonRefractor Manual? 0 Play Time 00:09:54 Cumulative 6.6 hours Start 2025.07.26 @ 16:22:55 End 2025.07.26 @ 16:30:36 Sessions 1 Manual Loads 0 Difficulty Rogue Special Mode None Game No. 16 Rogue 16 Adventurer 0 Explorer 0 Win Type - Total 0 Types 0/0/0/0/0/0/0/0/0/0 Lore% 15 Gallery% 14 Achievement% 12 Wizard Run 0 Options --------- Layout 1 ASCII 0 Keyboard 0 Movement Numpad Keybinds 0 Fullscreen 2 Font 24/Smallcaps Map View 50x35 Zoom Use 0% Tactical HUD 1 Map Filters NONE Filters NONE Steam 1 RUN: aa876308-f9e7-47ed-81ee-6e47c06c7f0a